bitfinex/quotes_SOLUSD_20250520
["timestamp","ask_amount","ask_price","bid_price","bid_amount"]
[1747756265674,21.01849627,166.52,166.45,101.91274886]
[1747756266259,6.00528465,166.52,166.46,0.14216157]
[1747756266467,6.00528465,166.52,166.47,18.64964886]
[1747756266663,6.00528465,166.52,166.49,18.64964886]
[1747756266871,6.00528465,166.52,166.5,18.0]
[1747756267264,6.00456346,166.54,166.51,18.64964886]
[1747756267758,15.00858761,166.58,166.51,18.64964886]
[1747756267971,15.00858761,166.58,166.51,100.24964886]
[1747756268376,42.69937113,166.58,166.52,18.0]
[1747756268676,15.00858761,166.58,166.52,18.0]
[1747756269177,15.00858761,166.58,166.53,18.64964886]
[1747756269872,27.69078352,166.6,166.53,18.64964886]
[1747756270180,27.69078352,166.61,166.53,18.64964886]
[1747756271104,27.69078352,166.59,166.54,18.0]
[1747756271488,27.69078352,166.59,166.52,1.5927]
[1747756271673,27.69078352,166.59,166.53,18.0]
[1747756271870,27.69078352,166.57,166.51,18.64964886]
[1747756272177,27.69078352,166.56,166.5,18.0]
[1747756272377,21.01092567,166.58,166.5,18.0]
[1747756272378,27.69078352,166.55,166.5,18.0]
[1747756272692,27.69078352,166.56,166.5,18.0]
[1747756272877,21.01092567,166.58,166.51,18.64964886]
[1747756273987,21.01092567,166.58,166.52,37.26]
[1747756274169,21.01092567,166.58,166.5,81.6]
[1747756274170,48.70170919,166.58,166.5,81.6]
[1747756274374,48.70170919,166.58,166.51,37.26]
[1747756275367,27.69078352,166.57,166.51,37.26]
[1747756276098,21.01344859,166.56,166.5,81.6]
[1747756276287,21.01344859,166.56,166.51,18.0]
[1747756276600,48.70423211,166.56,166.51,18.0]
[1747756276892,27.69078352,166.55,166.5,99.6]
[1747756277394,27.69078352,166.55,166.5,81.6]
[1747756277591,27.69078352,166.55,166.5,18.0]
[1747756277780,32.30709384,166.56,166.5,18.0]
[1747756277978,17.2974877,166.52,166.49,18.0]
[1747756278293,17.2974877,166.52,166.48,18.0]
[1747756278689,17.2974877,166.52,166.47,18.0]
[1747756279271,17.2974877,166.52,166.45,100.86]
[1747756279514,17.2974877,166.51,166.46,18.0]
[1747756279681,27.69079089,166.51,166.46,18.0]
[1747756279882,27.69079089,166.51,166.44,100.24964886]
[1747756280187,27.69079089,166.53,166.45,18.0]
[1747756281385,78.72958036,166.54,166.46,18.64964886]
[1747756281600,21.01597213,166.54,166.46,18.64964886]
[1747756281903,29.27559089,166.58,166.46,22.25390328]
[1747756281904,21.01218705,166.57,166.46,22.25390328]
[1747756282105,21.01218705,166.57,166.46,103.85390328]
[1747756282478,78.72038803,166.57,166.46,100.24964886]
[1747756282797,27.69079089,166.56,166.46,100.24964886]
[1747756283173,29.93038003,166.56,166.46,100.24964886]
[1747756283677,27.69079089,166.56,166.46,100.24964886]
[1747756283871,78.72038803,166.57,166.46,103.85409166]
[1747756286706,78.72038803,166.57,166.46,100.24964886]
[1747756288908,51.02959714,166.57,166.46,100.24964886]
[1747756289203,51.02959714,166.57,166.46,103.85404035]
[1747756290384,51.02959714,166.57,166.46,100.24964886]
[1747756293640,78.72038803,166.57,166.46,100.24964886]
[1747756293813,27.69079089,166.56,166.46,100.24964886]
[1747756294186,2.239797,166.55,166.46,100.24964886]
[1747756294386,29.93058789,166.55,166.46,100.24964886]
[1747756294611,27.69079089,166.53,166.46,100.86]
[1747756294910,2.239797,166.55,166.46,100.86]
[1747756294911,2.239797,166.55,166.47,18.0]
[1747756295117,27.83295246,166.56,166.47,18.0]
[1747756295494,0.14216157,166.56,166.47,18.0]
[1747756295690,27.83295246,166.56,166.47,18.0]
[1747756295890,27.69079089,166.54,166.47,18.0]
[1747756296193,27.69079089,166.53,166.47,18.0]
[1747756297508,27.69079089,166.53,166.46,19.26]
[1747756297711,27.69079089,166.53,166.47,18.0]
[1747756298121,51.04491952,166.52,166.47,18.0]
[1747756302418,51.04491952,166.52,166.43,83.1161]
[1747756302419,81.07134277,166.52,166.43,83.1161]
[1747756302596,17.30338443,166.49,166.43,99.6]
[1747756302799,17.30338443,166.49,166.43,18.0]
[1747756303115,17.30338443,166.48,166.42,37.16]
[1747756303711,51.06025109,166.47,166.42,37.16]
[1747756304418,51.06025109,166.47,166.43,17.31421487]
[1747756306009,51.06025109,166.47,166.41,18.0]
[1747756306205,51.06025109,166.47,166.43,17.31421487]
[1747756307423,51.06025109,166.47,166.44,17.31421487]
[1747756309027,45.05316273,166.47,166.44,17.31421487]
[1747756309220,15.01772091,166.47,166.45,17.31421487]
[1747756309816,15.01772091,166.47,166.44,17.31421487]
[1747756313614,15.01772091,166.47,166.43,17.31421487]
[1747756313810,15.01772091,166.47,166.46,17.31421487]
[1747756315839,21.02102101,166.5,166.46,17.31421487]
[1747756316222,21.02102101,166.5,166.48,17.31421487]
[1747756316426,21.02102101,166.5,166.49,17.31421487]
[1747756318040,21.01723412,166.53,166.49,17.31421487]
[1747756318642,68.35606917,166.53,166.48,17.31421487]
[1747756318944,17.31421487,166.5,166.45,35.31421487]
[1747756319115,17.31421487,166.48,166.44,81.6]
[1747756319430,17.31421487,166.47,166.42,17.31421487]
[1747756320639,45.05586927,166.46,166.43,17.31421487]
[1747756321149,15.01862309,166.46,166.45,17.31421487]
[1747756321649,15.01862309,166.46,166.4,17.31421487]
[1747756321944,15.01862309,166.46,166.43,17.31421487]
[1747756322129,15.01862309,166.46,166.44,17.31421487]
[1747756324644,15.01862309,166.46,166.42,17.31421487]
[1747756325022,32.33283796,166.46,166.42,17.31421487]
[1747756325519,32.33283796,166.46,166.41,17.31421487]
[1747756325920,68.37753337,166.46,166.41,17.31421487]
[1747756327553,51.0633185,166.46,166.41,17.31421487]
[1747756327752,68.37753337,166.46,166.41,17.31421487]
[1747756328447,51.0633185,166.46,166.42,17.31421487]
[1747756328654,51.0633185,166.46,166.44,17.31421487]
[1747756329153,21.02607232,166.46,166.45,35.33421487]
[1747756329562,6.00744923,166.46,166.45,35.33421487]
[1747756330236,21.01849627,166.52,166.45,35.33421487]
[1747756330558,21.01849627,166.52,166.48,17.31421487]
[1747756331461,15.01321162,166.52,166.49,17.31421487]
[1747756331828,15.01321162,166.52,166.48,17.31421487]
[1747756332150,17.31421487,166.51,166.46,17.31421487]
[1747756332349,15.01321162,166.52,166.49,17.31421487]
[1747756332658,15.01321162,166.52,166.51,17.31421487]
[1747756332839,6.00492403,166.53,166.51,17.31421487]
[1747756333154,6.00492403,166.53,166.52,17.31421487]
[1747756333454,21.01092567,166.58,166.52,17.31421487]
[1747756333634,21.01092567,166.58,166.54,17.31421487]
[1747756334761,68.34074865,166.58,166.53,17.31421487]
[1747756335255,2.23664873,166.57,166.53,17.31421487]
[1747756335456,21.01344859,166.56,166.53,17.31421487]
[1747756335839,21.01344859,166.56,166.55,17.31421487]
[1747756337462,21.00966444,166.59,166.55,17.31421487]
[1747756337640,21.00966444,166.59,166.54,18.0]
[1747756337641,17.31421487,166.58,166.54,18.0]
[1747756338141,21.00966444,166.59,166.56,17.31421487]
[1747756338361,21.00966444,166.59,166.55,17.31421487]
[1747756338557,38.32387931,166.59,166.54,35.31421487]
[1747756338961,68.33768566,166.59,166.54,35.31421487]
[1747756339865,17.31421487,166.58,166.54,35.31421487]
[1747756340965,21.01218705,166.57,166.54,35.31421487]
[1747756341367,21.01218705,166.57,166.54,18.0]
[1747756341544,17.31421487,166.55,166.46,26.8373]
[1747756341868,17.31421487,166.56,166.44,306.34]
[1747756341869,17.31421487,166.49,166.44,18.0]
[1747756342039,17.31421487,166.49,166.44,35.31421487]
[1747756342348,17.31421487,166.47,166.43,36.37421487]
[1747756342554,17.31421487,166.46,166.43,19.06]
[1747756342888,17.31421487,166.47,166.43,19.06]
[1747756343054,21.02607232,166.46,166.43,36.37421487]
[1747756343455,21.02607232,166.46,166.43,19.06]
[1747756343768,17.31421487,166.44,166.4,8.53212945]
[1747756343943,17.31421487,166.44,166.4,25.84634432]
[1747756344139,17.31421487,166.44,166.4,17.31421487]
[1747756344639,17.31421487,166.45,166.4,17.31421487]
[1747756345067,17.31421487,166.44,166.39,17.31421487]
[1747756345466,17.31421487,166.44,166.4,17.31421487]
[1747756346190,17.31421487,166.45,166.4,17.31421487]
[1747756346564,17.31421487,166.44,166.39,17.31421487]
[1747756346765,17.31421487,166.42,166.38,17.31421487]
[1747756346945,6.00889316,166.42,166.39,17.31421487]
[1747756348558,17.31421487,166.4,166.37,19.06]
[1747756348868,17.31421487,166.39,166.34,17.31421487]
[1747756349062,21.03744665,166.37,166.33,35.31421487]
[1747756349377,21.03744665,166.37,166.34,17.31421487]
[1747756350156,21.03744665,166.37,166.35,17.31421487]
[1747756350762,21.03744665,166.37,166.33,18.0]
[1747756350964,21.03744665,166.37,166.34,17.31421487]
[1747756351170,15.02674761,166.37,166.34,17.31421487]
[1747756351380,15.02674761,166.37,166.35,17.31421487]
[1747756352374,6.01033778,166.38,166.36,17.31421487]
[1747756352578,30.0444658,166.42,166.33,18.0]
[1747756352579,6.00781015,166.45,166.37,17.31421487]
[1747756352762,6.00781015,166.45,166.43,17.31421487]
[1747756353086,30.03724618,166.46,166.43,17.31421487]
[1747756353459,21.02566379,166.47,166.44,17.31421487]
[1747756354683,15.01857543,166.47,166.44,17.31421487]
[1747756355700,21.02566379,166.47,166.44,17.31421487]
[1747756357781,15.01857543,166.47,166.45,17.31421487]
[1747756358081,15.01857543,166.47,166.44,17.31421487]
[1747756358287,15.01857543,166.47,166.45,17.31421487]
[1747756359073,15.01857543,166.47,166.46,17.31421487]
[1747756359489,6.00636674,166.49,166.46,17.31421487]
[1747756359793,15.01569247,166.5,166.48,17.31421487]
[1747756360281,6.00528465,166.52,166.49,17.31421487]
[1747756360501,6.00528465,166.52,166.5,17.31421487]
[1747756360698,6.00528465,166.52,166.46,7.7245]
[1747756360699,21.01849627,166.52,166.49,17.31421487]
[1747756361210,21.01849627,166.52,166.5,17.31421487]
[1747756361387,6.00276127,166.59,166.51,35.96386373]
[1747756361586,6.00276127,166.59,166.58,17.31421487]
[1747756362174,6.00276127,166.59,166.57,17.31421487]
[1747756362480,6.00276127,166.59,166.56,35.33421487]
[1747756363497,21.00840336,166.6,166.56,35.33421487]
[1747756363787,21.00840336,166.6,166.56,45.67764072]
[1747756364587,27.65764072,166.59,166.53,18.0]
[1747756364769,27.65764072,166.59,166.54,27.65764072]
[1747756364962,27.65764072,166.59,166.55,27.65764072]
[1747756365365,78.67804888,166.6,166.55,27.65764072]
[1747756366185,51.02040816,166.6,166.55,27.65764072]
[1747756366379,78.67804888,166.6,166.55,27.65764072]
[1747756366586,27.65764072,166.59,166.54,27.65764072]
[1747756367276,27.65764072,166.58,166.53,45.65764072]
[1747756367475,27.65764072,166.58,166.53,27.65764072]
[1747756367876,27.65764072,166.57,166.52,27.65764072]
[1747756368591,21.01344859,166.56,166.52,27.65764072]
[1747756368765,21.01344859,166.56,166.53,27.65764072]
[1747756369598,21.01344859,166.56,166.5,64.85764072]
[1747756369599,27.65764072,166.55,166.5,64.85764072]
[1747756369893,27.65764072,166.55,166.51,27.65764072]
[1747756370885,27.65764072,166.53,166.48,27.65764072]
[1747756371088,27.65764072,166.53,166.48,45.65764072]
[1747756371593,27.65764072,166.53,166.49,27.65764072]
[1747756371890,6.00528465,166.52,166.49,27.65764072]
[1747756372689,21.01849627,166.52,166.49,27.65764072]
[1747756375188,15.01321162,166.52,166.48,18.0]
[1747756375489,15.01321162,166.52,166.5,27.65764072]
[1747756375985,15.01321162,166.52,166.49,27.65764072]
[1747756376898,15.01321162,166.52,166.51,27.65764072]
[1747756380076,30.02281734,166.54,166.51,27.65764072]
[1747756382502,30.02281734,166.54,166.52,27.65764072]
[1747756383202,21.01471029,166.55,166.52,27.65764072]
[1747756383378,51.02040816,166.6,166.54,27.65764072]
[1747756383578,51.02040816,166.6,166.58,27.65764072]
[1747756383881,51.02040816,166.6,166.58,17.28300407]
[1747756384087,21.00840336,166.6,166.59,17.28300407]
[1747756384804,21.00840336,166.6,166.58,17.28300407]
[1747756385177,21.00840336,166.6,166.59,17.28300407]
[1747756385379,30.0087407,166.62,166.59,17.28300407]
[1747756385688,30.0087407,166.62,166.58,17.28300407]
[1747756385890,47.29174477,166.62,166.57,35.28300407]
[1747756386413,30.0087407,166.62,166.57,18.0]
[1747756386612,30.0087407,166.62,166.58,17.28300407]
[1747756386896,30.0087407,166.62,166.57,17.28300407]
[1747756386897,47.29174477,166.62,166.57,17.28300407]
[1747756387399,0.14216157,166.61,166.57,17.28300407]
[1747756387719,17.42516564,166.61,166.56,17.28300407]
[1747756388597,0.14216157,166.61,166.57,17.28300407]
[1747756388989,17.42516564,166.61,166.57,17.28300407]
[1747756389504,21.00840336,166.6,166.57,17.28300407]
[1747756391192,21.00840336,166.6,166.58,17.28300407]
[1747756391505,21.00840336,166.6,166.57,17.28300407]
[1747756391902,51.02040816,166.6,166.56,17.28300407]
[1747756392102,68.30341223,166.6,166.55,17.28300407]
[1747756392490,51.02040816,166.6,166.56,17.28300407]
[1747756392906,51.02040816,166.6,166.57,17.28300407]
[1747756393203,21.00840336,166.6,166.59,17.28300407]
[1747756393711,15.0060024,166.6,166.59,17.28300407]
[1747756395086,6.00168047,166.62,166.59,17.28300407]
[1747756395290,6.00168047,166.62,166.61,17.28300407]
[1747756395699,38.28258407,166.67,166.61,17.28300407]
[1747756395890,20.99958,166.67,166.64,17.28300407]
[1747756396610,20.99958,166.67,166.63,17.28300407]
[1747756397108,17.28300407,166.66,166.62,17.28300407]
[1747756398106,17.28300407,166.64,166.58,1.5397]
[1747756398296,17.28300407,166.63,166.58,18.82270407]
[1747756398890,17.28300407,166.64,166.59,17.28300407]
[1747756399911,17.28300407,166.64,166.58,1.5397]
[1747756400213,21.00840336,166.6,166.57,17.28300407]
[1747756401106,68.30341223,166.6,166.55,54.44300407]
[1747756401414,17.28300407,166.59,166.55,17.28300407]
[1747756401913,17.28300407,166.59,166.54,17.28300407]
[1747756402101,17.28300407,166.59,166.53,19.6302]
[1747756402102,21.01218705,166.57,166.53,1.6302]
[1747756402412,21.01218705,166.57,166.53,18.91320407]
[1747756402591,21.01218705,166.57,166.54,17.28300407]
[1747756402791,6.00348201,166.57,166.56,17.28300407]
[1747756402994,6.00348201,166.57,166.56,34.56600814]
[1747756403812,6.00348201,166.57,166.56,17.28300407]
[1747756404024,21.01218705,166.57,166.53,1.6302]
[1747756404214,36.01440576,166.6,166.56,17.28300407]
[1747756404394,51.02040816,166.6,166.57,17.28300407]
[1747756404905,68.30341223,166.6,166.53,1.6302]
[1747756405101,68.30341223,166.6,166.56,17.28300407]
[1747756405300,51.02040816,166.6,166.56,17.28300407]
[1747756405514,68.30341223,166.6,166.56,17.28300407]
[1747756405715,19.52067161,166.59,166.54,17.28300407]
[1747756405890,17.28300407,166.58,166.53,17.28300407]
[1747756406273,21.01218705,166.57,166.53,17.28300407]
[1747756408020,68.31260121,166.57,166.52,17.28300407]
[1747756408405,68.31260121,166.57,166.53,17.28300407]
[1747756409023,51.02959714,166.57,166.53,17.28300407]
[1747756411624,51.02959714,166.57,166.54,17.28300407]
[1747756412627,45.02611513,166.57,166.54,17.28300407]
[1747756413124,45.02611513,166.57,166.53,17.28300407]
[1747756413319,45.02611513,166.57,166.51,18.0]
[1747756413320,62.3091192,166.57,166.52,17.28300407]
[1747756413526,45.02611513,166.57,166.54,17.28300407]
[1747756414627,51.02959714,166.57,166.54,17.28300407]
[1747756415732,51.02959714,166.57,166.55,17.28300407]
[1747756415909,51.02959714,166.57,166.54,17.28300407]
[1747756416109,51.02959714,166.57,166.55,17.28300407]
[1747756416312,51.02959714,166.57,166.54,17.28300407]
[1747756416515,45.02611513,166.57,166.54,17.28300407]
[1747756417142,45.02611513,166.57,166.53,17.28300407]
[1747756417344,62.3091192,166.57,166.52,17.28300407]
[1747756418141,17.28300407,166.56,166.49,83.2181]
[1747756418432,17.28300407,166.55,166.49,1.6181]
[1747756418634,21.01597213,166.54,166.5,17.28300407]
[1747756418939,17.28300407,166.53,166.48,35.28300407]
[1747756420735,17.28300407,166.53,166.49,17.28300407]
[1747756421249,21.01849627,166.52,166.49,17.28300407]
[1747756422338,68.32792359,166.52,166.47,35.28300407]
[1747756422838,68.32792359,166.52,166.47,17.28300407]
[1747756424220,68.32792359,166.52,166.48,17.28300407]
[1747756424221,51.04491952,166.52,166.48,17.28300407]
[1747756424423,51.04491952,166.52,166.5,17.28300407]
[1747756425149,21.01849627,166.52,166.51,17.28300407]
[1747756425527,30.02281734,166.54,166.51,17.28300407]
[1747756425847,30.02281734,166.54,166.53,17.28300407]
[1747756426267,30.02281734,166.54,166.52,17.28300407]
[1747756428339,30.02281734,166.54,166.51,17.28300407]
[1747756428650,30.02281734,166.54,166.5,17.28300407]
[1747756428839,30.02281734,166.54,166.51,17.28300407]
[1747756430850,30.02281734,166.54,166.52,17.28300407]
[1747756431043,30.02281734,166.54,166.51,17.28300407]
[1747756431544,30.02281734,166.54,166.5,17.28300407]
[1747756432350,30.02281734,166.54,166.49,18.0]
[1747756432568,30.02281734,166.54,166.48,17.28300407]
[1747756432569,17.28300407,166.53,166.48,17.28300407]
[1747756432876,17.28300407,166.51,166.46,35.28300407]
[1747756433256,17.28300407,166.51,166.47,17.28300407]
[1747756433470,17.28300407,166.52,166.47,17.28300407]
[1747756433681,98.34461088,166.54,166.49,17.28300407]
[1747756433971,81.06160681,166.54,166.5,17.28300407]
[1747756436051,81.06160681,166.54,166.46,18.64964886]
[1747756436248,81.06160681,166.54,166.5,17.28300407]
[1747756437336,81.06160681,166.54,166.51,17.28300407]
[1747756439163,81.06160681,166.54,166.5,35.28300407]
[1747756439850,81.06160681,166.54,166.51,17.28300407]
[1747756441375,60.04563468,166.54,166.51,17.28300407]
[1747756443182,60.04563468,166.54,166.5,35.28300407]
[1747756444181,60.04563468,166.54,166.51,17.28300407]
[1747756444679,21.01218705,166.57,166.53,18.92840407]
[1747756444857,21.01218705,166.57,166.56,17.28300407]
[1747756445057,6.00348201,166.57,166.56,17.28300407]
[1747756446282,15.00663501,166.6,166.56,17.28300407]
[1747756446587,15.00663501,166.6,166.58,17.28300407]
[1747756446760,15.00663501,166.6,166.58,35.28300407]
[1747756451378,32.28963908,166.6,166.56,17.28300407]
[1747756451585,32.28963908,166.6,166.55,18.0]
[1747756451782,32.28963908,166.6,166.55,35.28300407]
[1747756452091,17.28300407,166.59,166.55,35.28300407]
[1747756452691,17.28300407,166.59,166.55,17.28300407]
[1747756452869,15.00663501,166.6,166.55,17.28300407]
[1747756453075,15.00663501,166.6,166.56,17.28300407]
[1747756453278,21.00903597,166.6,166.56,17.28300407]
[1747756453482,21.00903597,166.6,166.59,17.28300407]
[1747756453972,21.00903597,166.6,166.58,17.28300407]
[1747756454898,21.00903597,166.6,166.59,17.28300407]
[1747756455274,9.56609952,166.65,166.59,17.28300407]
[1747756455275,21.00336053,166.64,166.59,17.28300407]
[1747756455483,21.00336053,166.64,166.56,17.28300407]
[1747756455484,21.00336053,166.64,166.6,17.28300407]
[1747756455689,68.29116536,166.64,166.59,17.28300407]
[1747756455879,51.00816129,166.64,166.58,17.28300407]
[1747756456081,68.29116536,166.64,166.59,17.28300407]
[1747756456492,68.29116536,166.64,166.6,17.28300407]
[1747756457089,68.29116536,166.64,166.59,35.28300407]
[1747756457396,17.28300407,166.61,166.58,18.0]
[1747756458493,21.00588164,166.62,166.58,18.0]
[1747756458677,38.28888571,166.62,166.58,18.0]
[1747756459375,17.28300407,166.62,166.58,18.0]
[1747756460199,30.00480076,166.64,166.59,17.28300407]
[1747756460498,30.00480076,166.64,166.6,17.28300407]
[1747756460697,47.28780483,166.64,166.59,17.28300407]
[1747756460885,30.00480076,166.64,166.59,17.28300407]
[1747756461087,30.00480076,166.64,166.6,17.28300407]
[1747756461690,17.28300407,166.62,166.55,81.6]
[1747756462004,17.28300407,166.62,166.57,17.28300407]
[1747756462193,30.00480076,166.64,166.58,17.28300407]
[1747756462194,17.28300407,166.63,166.58,17.28300407]
[1747756463608,21.00588164,166.62,166.58,17.28300407]
[1747756465699,38.28888571,166.62,166.58,17.28300407]
[1747756465889,17.28300407,166.61,166.57,35.28300407]
[1747756466988,17.28300407,166.61,166.57,17.28300407]
[1747756468208,21.00840336,166.6,166.57,17.28300407]
[1747756468894,21.00840336,166.6,166.56,35.28300407]
[1747756469396,51.02040816,166.6,166.53,83.2454]
[1747756469607,68.30341223,166.6,166.54,18.0]
[1747756469919,17.28300407,166.59,166.54,35.28300407]
[1747756470085,21.01092567,166.58,166.54,35.28300407]
[1747756470397,21.01092567,166.58,166.55,17.28300407]
[1747756470902,21.01092567,166.58,166.53,1.6454]
[1747756471104,51.02653378,166.58,166.54,17.28300407]
[1747756473505,51.02653378,166.58,166.53,18.92840407]
[1747756473506,68.30953785,166.58,166.53,18.92840407]
[1747756473841,17.28300407,166.57,166.53,35.28300407]
[1747756474387,21.01344859,166.56,166.53,35.28300407]
[1747756475383,21.01344859,166.56,166.53,18.0]
[1747756475888,21.01344859,166.56,166.52,35.28300407]
[1747756476309,21.01344859,166.56,166.53,17.28300407]
[1747756476608,15.00960614,166.56,166.52,18.0]
[1747756476994,15.00960614,166.56,166.53,17.28300407]
[1747756477814,15.00960614,166.56,166.54,17.28300407]
[1747756478005,17.28300407,166.55,166.48,1.6039]
[1747756478320,17.28300407,166.53,166.49,35.28300407]
[1747756478488,17.28300407,166.53,166.49,17.28300407]
[1747756478688,21.01849627,166.52,166.49,35.28300407]
[1747756480412,15.01321162,166.52,166.49,35.28300407]
[1747756480587,15.01321162,166.52,166.48,17.28300407]
[1747756480790,32.29621569,166.52,166.45,6.136]
[1747756481003,17.28300407,166.5,166.45,35.28300407]
[1747756481704,17.28300407,166.5,166.45,18.0]
[1747756481913,17.28300407,166.5,166.45,35.28300407]
[1747756482408,21.02354636,166.48,166.44,18.85560407]
[1747756482586,21.02354636,166.48,166.44,19.5726]
[1747756482910,38.30655043,166.48,166.43,35.28300407]
[1747756483322,38.30655043,166.48,166.38,81.6]
[1747756483323,17.28300407,166.44,166.36,7.9841]
[1747756483491,17.28300407,166.41,166.34,26.53212945]
[1747756483690,0.14216157,166.46,166.34,26.53212945]
[1747756483691,17.28300407,166.4,166.35,17.28300407]
[1747756483885,17.28300407,166.39,166.34,26.53212945]
[1747756484097,17.28300407,166.37,166.34,8.53212945]
[1747756484296,0.14216157,166.42,166.34,8.53212945]
[1747756484496,6.01069904,166.37,166.34,8.53212945]
[1747756484711,6.01069904,166.37,166.33,17.28300407]
[1747756484904,21.03744665,166.37,166.33,17.28300407]
[1747756485213,38.32045072,166.37,166.32,7.9472]
[1747756485427,17.28300407,166.36,166.31,17.28300407]
[1747756485998,51.09094187,166.37,166.32,17.28300407]
[1747756485999,68.37394594,166.37,166.32,17.28300407]
[1747756486945,17.28300407,166.36,166.31,17.28300407]
[1747756487400,17.28300407,166.35,166.29,18.0]
[1747756487712,17.28300407,166.34,166.28,21.1282]
[1747756488022,17.28300407,166.34,166.3,17.28300407]
[1747756488194,0.14216157,166.36,166.3,17.28300407]
[1747756488520,17.28300407,166.35,166.3,17.28300407]
[1747756488709,17.28300407,166.34,166.29,35.28300407]
[1747756489089,68.38008852,166.35,166.3,17.28300407]
[1747756490311,17.28300407,166.34,166.29,18.02]
[1747756490822,17.28300407,166.33,166.29,18.02]
[1747756490994,0.14216157,166.34,166.26,17.28300407]
[1747756491200,17.28300407,166.31,166.25,18.02]
[1747756491402,17.28300407,166.31,166.27,17.28300407]
[1747756491709,17.28300407,166.32,166.27,17.28300407]
[1747756492417,21.04503637,166.31,166.3,17.28300407]
[1747756492717,6.01286753,166.31,166.3,17.28300407]
[1747756493219,5.81613653,166.31,166.3,17.28300407]
[1747756493408,5.81613653,166.31,166.3,35.30300407]
[1747756494409,15.03003507,166.34,166.3,35.30300407]
[1747756494610,15.03003507,166.34,166.32,17.28300407]
[1747756497022,17.28300407,166.36,166.32,17.28300407]
[1747756497824,17.28300407,166.35,166.31,17.28300407]
[1747756498119,17.28300407,166.36,166.32,17.28300407]
[1747756499122,21.03744665,166.37,166.34,17.28300407]
[1747756500226,15.02674761,166.37,166.35,17.28300407]
[1747756500437,15.02674761,166.37,166.36,17.28300407]
[1747756500617,6.01033778,166.38,166.36,35.30300407]
[1747756500821,6.01033778,166.38,166.37,17.28300407]
[1747756501216,6.00889316,166.42,166.37,17.28300407]
[1747756501538,38.31413013,166.42,166.37,17.28300407]
[1747756501831,17.28300407,166.41,166.36,17.28300407]
[1747756502011,17.28300407,166.4,166.35,17.28300407]
[1747756502216,21.03491796,166.39,166.35,35.30300407]
[1747756502734,21.03491796,166.39,166.36,17.28300407]
[1747756503715,21.03491796,166.39,166.38,17.28300407]
[1747756504009,6.00997656,166.39,166.38,17.28300407]
[1747756504214,15.02285133,166.42,166.38,17.28300407]
[1747756506437,21.03174449,166.42,166.38,17.28300407]
[1747756506921,21.03174449,166.42,166.41,17.28300407]
[1747756507716,38.31474856,166.42,166.37,35.30300407]
[1747756508043,17.28300407,166.41,166.37,17.28300407]
[1747756508241,17.28300407,166.41,166.35,26.0]
[1747756508242,17.28300407,166.41,166.36,35.30300407]
[1747756508412,17.28300407,166.41,166.36,18.02]
[1747756508614,0.14216157,166.46,166.36,35.30300407]
[1747756508615,38.31665791,166.4,166.36,35.30300407]
[1747756509311,21.03365384,166.4,166.36,35.30300407]
[1747756510038,38.31665791,166.4,166.36,18.02]
[1747756510915,21.03365384,166.4,166.36,35.30300407]
[1747756511436,21.03365384,166.4,166.36,17.28300407]
[1747756511818,21.03365384,166.4,166.37,17.28300407]
[1747756512129,21.03365384,166.4,166.39,17.28300407]
[1747756512438,21.03365384,166.4,166.38,17.28300407]
[1747756513843,15.02403846,166.4,166.35,18.64964886]
[1747756514016,15.02403846,166.4,166.38,17.28300407]
[1747756515238,15.02403846,166.4,166.39,17.28300407]
[1747756515436,15.02403846,166.4,166.35,44.64964886]
[1747756515936,38.35277135,166.43,166.35,44.64964886]
[1747756516532,17.32290896,166.42,166.35,44.64964886]
[1747756517736,21.02986239,166.43,166.38,26.0]
[1747756517938,15.02133028,166.43,166.38,47.4431]
[1747756518124,15.02133028,166.43,166.38,27.5431]
[1747756518442,32.34423924,166.43,166.39,18.02]
[1747756519444,15.02133028,166.43,166.39,18.02]
[1747756520041,21.02986239,166.43,166.39,18.02]
[1747756522243,15.02133028,166.43,166.39,18.02]
[1747756523135,15.02133028,166.43,166.39,44.02]
[1747756523335,15.02133028,166.43,166.39,125.62]
[1747756524140,21.02607232,166.46,166.4,18.64964886]
[1747756524336,21.02607232,166.46,166.4,106.64834886]
[1747756525347,15.01862309,166.46,166.4,106.64834886]
[1747756527129,21.02102101,166.5,166.4,106.64834886]
[1747756527333,19.55717655,166.49,166.43,26.0]
[1747756527643,19.55717655,166.49,166.43,44.02]
[1747756527827,2.23426759,166.49,166.43,44.02]
[1747756528144,38.34392997,166.5,166.43,44.02]
[1747756528451,38.34392997,166.5,166.43,63.92]
[1747756529053,38.3284896,166.5,166.46,17.30746859]
[1747756529745,38.3284896,166.5,166.43,145.52]
[1747756529746,17.30746859,166.49,166.44,17.30746859]
[1747756530146,17.30746859,166.46,166.4,6.3987]
[1747756530342,17.30746859,166.45,166.41,18.02]
[1747756531040,17.30746859,166.45,166.41,35.32746859]
[1747756531648,21.02859889,166.44,166.41,35.32746859]
[1747756533050,21.02859889,166.44,166.4,35.32746859]